bitfinex/quotes_SOLUSD_20251124
["timestamp","ask_amount","ask_price","bid_price","bid_amount"]
[1764015785516,16.308864,139.14,139.11,0.2]
[1764015785720,3.28,139.13,139.11,0.88]
[1764015786015,0.14216157,139.15,139.11,0.2]
[1764015786016,3.28,139.12,139.11,0.2]
[1764015786247,3.42216157,139.12,139.11,0.2]
[1764015786417,4.09216157,139.12,139.11,0.2]
[1764015786720,4.09216157,139.12,139.09,0.2]
[1764015786721,0.14216157,139.11,139.09,0.2]
[1764015786914,0.81216157,139.11,139.09,1e-08]
[1764015787142,16.308864,139.07,139.05,0.2]
[1764015787437,2.879828,139.06,139.05,0.2]
[1764015787634,2.67974201,139.06,139.05,0.2]
[1764015787849,2.07948403,139.06,139.05,0.2]
[1764015788026,1.07905408,139.06,139.05,0.2]
[1764015788212,0.47879611,139.06,139.05,0.2]
[1764015788416,2.879828,139.06,139.05,0.2]
[1764015788630,2.47965602,139.06,139.05,0.2]
[1764015788916,2.67974201,139.06,139.05,0.2]
[1764015789218,8.81252812,139.06,139.05,0.2]
[1764015789427,8.00209812,139.06,139.05,0.2]
[1764015789638,7.80201213,139.06,139.05,0.2]
[1764015789940,10.46105451,139.06,139.05,0.2]
[1764015790518,10.27105451,139.06,139.05,0.2]
[1764015791621,6.99105451,139.06,139.05,0.2]
[1764015791835,3.28,139.06,139.05,0.2]
[1764015792815,53.19736554,139.14,139.05,0.2]
[1764015792816,17.97199826,139.11,139.05,0.2]
[1764015793120,35.93736554,139.14,139.05,0.2]
[1764015793121,0.14216157,139.09,139.05,0.88]
[1764015793322,10.47010641,139.08,139.05,0.88]
[1764015795341,7.18966416,139.09,139.06,0.68]
[1764015795720,3.28,139.08,139.06,0.68]
[1764015796721,3.28,139.08,139.06,7.87113368]
[1764015797246,3.28,139.08,139.07,0.68]
[1764015798843,7.3303236,139.12,139.07,7.87058933]
[1764015799049,3.28,139.11,139.07,9.87058932]
[1764015799236,7.18761775,139.13,139.08,0.68]
[1764015799435,3.28,139.12,139.08,0.68]
[1764015800650,3.28,139.11,139.09,10.80994491]
[1764015800838,0.14216157,139.15,139.1,7.1890726]
[1764015801145,25.15155579,139.16,139.1,7.8690726]
[1764015801146,3.28,139.14,139.1,7.8690726]
[1764015801319,3.28,139.14,139.11,0.68]
[1764015801735,7.32813455,139.16,139.11,2.67999999]
[1764015801736,3.28,139.13,139.11,2.67999999]
[1764015802124,3.28,139.13,139.12,0.68]
[1764015802326,19.588864,139.13,139.08,0.68]
[1764015802525,0.19,139.12,139.07,1.99999999]
[1764015802824,0.33216157,139.12,139.07,1.99999999]
[1764015803019,7.18855581,139.11,139.07,0.69]
[1764015803223,25.15994535,139.11,139.07,0.69]
[1764015803426,7.18855581,139.11,139.07,0.69]
[1764015804231,3.28,139.1,139.08,8.80994492]
[1764015804636,7.18700589,139.14,139.09,2.68999999]
[1764015804951,3.28,139.13,139.09,2.68999999]
[1764015805150,10.46755601,139.13,139.1,0.69]
[1764015805530,3.28,139.12,139.1,0.69]
[1764015806532,7.18755601,139.13,139.1,0.69]
[1764015806731,3.28,139.12,139.1,0.69]
[1764015807529,10.46831239,139.12,139.1,0.69]
[1764015808354,28.43841014,139.12,139.07,1.99999999]
[1764015808535,28.43841014,139.12,139.07,8.80994492]
[1764015808536,3.28,139.11,139.07,8.80994492]
[1764015808743,3.28,139.11,139.08,0.69]
[1764015809241,36.07640121,139.15,139.08,2.68999999]
[1764015809242,16.308864,139.15,139.08,2.68999999]
[1764015809450,3.28,139.12,139.09,7.18958947]
[1764015809651,23.49380436,139.18,139.1,1.99999999]
[1764015809861,21.24388744,139.17,139.11,0.69]
[1764015810859,0.14216157,139.16,139.11,0.69]
[1764015811542,7.18648939,139.15,139.11,0.69]
[1764015811839,3.28,139.14,139.11,0.69]
[1764015813356,3.28,139.13,139.12,10.80994491]
[1764015813557,3.28,139.13,139.12,1.99999999]
[1764015813732,3.28,139.13,139.12,2.68999999]
[1764015814768,10.46752246,139.13,139.1,1.99999999]
[1764015814957,10.46752246,139.13,139.11,1.99999999]
[1764015815254,10.46752246,139.13,139.1,0.69]
[1764015815462,10.46752246,139.13,139.11,1.99999999]
[1764015816729,10.46752246,139.13,139.1,0.69]
[1764015817134,10.46752246,139.13,139.1,2.68999999]
[1764015817334,10.46752246,139.13,139.1,0.69]
[1764015817531,10.46752246,139.13,139.07,8.80994492]
[1764015817532,10.65752246,139.13,139.07,8.80994492]
[1764015817754,0.14216157,139.12,139.07,0.69]
[1764015818064,0.33216157,139.12,139.07,0.69]
[1764015818563,0.19,139.11,139.07,0.69]
[1764015818741,28.44175412,139.1,139.07,0.69]
[1764015820363,28.44175412,139.1,139.05,0.2]
[1764015820549,28.44175412,139.1,139.06,2.68999999]
[1764015821162,28.44175412,139.1,139.06,0.69]
[1764015821367,28.44175412,139.1,139.06,2.68999999]
[1764015822267,28.44175412,139.1,139.06,0.69]
[1764015822768,0.33216157,139.09,139.05,0.2]
[1764015823362,25.16537244,139.08,139.05,0.2]
[1764015823562,3.28,139.07,139.05,0.2]
[1764015823749,3.28,139.07,139.05,0.89]
[1764015824263,3.28,139.07,139.05,0.2]
[1764015825663,17.97526603,139.08,139.05,0.89]
[1764015825861,3.28,139.06,139.05,0.89]
[1764015826650,7.19082009,139.07,139.05,0.89]
[1764015826959,7.1902597,139.08,139.06,0.69]
[1764015827352,3.28,139.07,139.06,0.69]
[1764015827755,7.18977359,139.09,139.06,0.69]
[1764015827960,3.28,139.07,139.06,9.49994492]
[1764015829063,7.18922259,139.1,139.06,9.49994492]
[1764015829262,7.18752246,139.13,139.08,8.80994492]
[1764015829462,3.28,139.12,139.08,8.80994492]
[1764015829767,7.18855581,139.11,139.09,0.7]
[1764015831275,0.14216157,139.1,139.06,8.80994492]
[1764015831470,3.28,139.09,139.06,0.7]
[1764015831763,7.33226798,139.08,139.06,0.7]
[1764015833381,3.28,139.07,139.06,0.7]
[1764015835364,18.11484309,139.1,139.06,9.50994492]
[1764015835570,3.28,139.09,139.06,9.50994492]
[1764015835762,10.46997662,139.09,139.07,0.7]
[1764015836750,3.28,139.09,139.07,0.7]
[1764015836973,7.18928396,139.1,139.07,0.7]
[1764015837190,3.28,139.08,139.07,9.50994492]
[1764015839973,3.28,139.08,139.07,16.70056834]
[1764015840175,18.11285502,139.12,139.08,8.80994492]
[1764015840176,23.63920404,139.12,139.08,8.80994492]
[1764015840376,3.28,139.11,139.08,9.50994492]
[1764015840576,7.18817847,139.12,139.09,0.7]
[1764015840780,3.28,139.11,139.08,0.7]
[1764015840963,3.28,139.11,139.07,8.80994492]
[1764015841168,0.14216157,139.1,139.07,0.7]
[1764015842074,7.18998493,139.09,139.07,0.7]
[1764015842275,3.28,139.08,139.07,0.7]
[1764015842471,3.28,139.08,139.05,9.00994492]
[1764015842688,3.28,139.08,139.05,9.70994492]
[1764015842885,3.28,139.08,139.06,0.7]
[1764015844085,10.47049682,139.08,139.06,0.7]
[1764015844794,3.28,139.08,139.06,0.7]
[1764015845097,7.18983826,139.09,139.06,0.7]
[1764015845257,3.28,139.08,139.06,7.89110725]
[1764015845453,3.28,139.08,139.06,0.7]
[1764015845799,16.308864,139.12,139.06,0.7]
[1764015845800,7.18648939,139.15,139.08,8.80994492]
[1764015845962,7.18339199,139.21,139.12,8.80994492]
[1764015846273,7.18442416,139.19,139.13,1.99999999]
[1764015846583,41.45434858,139.19,139.13,2.69999999]
[1764015846771,41.45434858,139.19,139.13,0.7]
[1764015846971,0.14216157,139.18,139.13,0.7]
[1764015847281,41.64434858,139.19,139.13,0.7]
[1764015847282,3.28,139.17,139.13,2.69999999]
[1764015847479,7.18597298,139.16,139.13,2.69999999]
[1764015847678,7.18597298,139.16,139.14,0.7]
[1764015847867,3.28,139.15,139.14,0.7]
[1764015848066,3.28,139.15,139.14,9.50994492]
[1764015848467,3.28,139.15,139.13,1.99999999]
[1764015848665,3.28,139.15,139.13,2.69999999]
[1764015849075,7.18568202,139.17,139.14,0.7]
[1764015849273,3.28,139.16,139.14,0.7]
[1764015849678,0.33216157,139.15,139.11,0.7]
[1764015849863,0.14216157,139.15,139.12,1.99999999]
[1764015850564,0.33216157,139.15,139.09,1.99999999]
[1764015850880,16.64102557,139.15,139.08,0.7]
[1764015851078,0.19,139.14,139.08,2.69999999]
[1764015851278,0.14216157,139.12,139.08,2.69999999]
[1764015851488,0.14216157,139.12,139.06,0.7]
[1764015851671,0.14216157,139.1,139.07,1.99999999]
[1764015851887,3.28,139.09,139.06,2.69999999]
[1764015852187,3.28,139.09,139.06,0.7]
[1764015852366,3.28,139.09,139.05,0.2]
[1764015852562,3.28,139.09,139.05,0.9]
[1764015853390,3.28,139.09,139.06,2.69999999]
[1764015853597,0.14216157,139.1,139.06,2.69999999]
[1764015853764,3.28,139.08,139.07,0.7]
[1764015855175,3.28,139.08,139.07,11.50994491]
[1764015855966,3.28,139.08,139.07,0.7]
[1764015856166,3.28,139.08,139.07,2.69999999]
[1764015856368,3.28,139.08,139.07,0.7]
[1764015858072,3.28,139.08,139.07,2.69999999]
[1764015858468,3.28,139.08,139.02,16.308864]
[1764015859178,10.47014702,139.08,139.0,0.14216157]
[1764015859399,10.47014702,139.08,138.99,0.14216157]
[1764015859688,3.28,139.07,139.0,17.98561151]
[1764015859986,10.47070096,139.07,139.0,25.17985611]
[1764015860380,10.47070096,139.07,139.01,9.50994492]
[1764015860577,3.28,139.07,139.01,9.50994492]
[1764015860788,10.47062605,139.07,139.02,0.7]
[1764015861593,3.28,139.07,139.02,0.7]
[1764015861988,10.47103369,139.07,139.02,7.89306456]
[1764015862174,11.15103369,139.07,139.03,8.80994492]
[1764015862375,11.15103369,139.07,139.03,9.50994492]
[1764015862376,28.44759225,139.07,139.03,9.50994492]
[1764015862575,29.12759225,139.07,139.03,0.7]
[1764015863794,0.14216157,139.06,139.03,0.7]
[1764015864091,7.19165767,139.05,139.03,0.7]
[1764015864292,3.28,139.04,139.03,0.7]
[1764015864871,3.28,139.04,139.01,8.80994492]
[1764015865093,3.28,139.04,139.02,0.67]
[1764015865275,3.28,139.04,138.99,0.67]
[1764015865481,3.99,139.04,138.99,0.67]
[1764015866081,7.19269222,139.03,138.99,0.67]
[1764015866480,7.19269222,139.03,138.99,7.86450462]
[1764015866888,7.19269222,139.03,139.0,0.67]
[1764015867286,3.28,139.02,139.0,0.67]
[1764015868180,7.1924089,139.04,139.0,0.67]
[1764015868385,3.28,139.03,139.0,0.67]
[1764015870204,3.28,139.03,139.0,7.86391541]
[1764015870712,10.47279371,139.03,139.01,0.67]
[1764015870900,10.47279371,139.03,139.0,9.47994492]
[1764015871289,10.47279371,139.03,139.0,0.67]
[1764015874994,16.308864,139.06,139.01,8.80994492]
[1764015875201,3.28,139.05,139.01,8.80994492]
[1764015875383,3.28,139.05,139.02,0.67]
[1764015876875,10.47177076,139.05,139.02,0.67]
[1764015877080,11.18177076,139.05,139.0,0.67]
[1764015877382,10.47177076,139.05,139.01,9.47994492]
[1764015877798,10.47177076,139.05,139.01,0.67]
[1764015878305,0.85216157,139.04,138.99,0.67]
[1764015878785,7.19269222,139.03,138.99,0.67]
[1764015879116,3.28,139.02,138.99,0.67]
[1764015880797,10.47363756,139.02,138.99,0.67]
[1764015882182,23.50135088,139.04,139.0,8.80994492]
[1764015882397,3.28,139.03,139.01,0.67]
[1764015883207,3.28,139.03,139.01,9.47994492]
[1764015883709,3.28,139.03,139.02,0.67]
[1764015884809,7.19137315,139.06,139.02,0.67]
[1764015884992,3.28,139.05,139.03,7.19269222]
[1764015885414,3.28,139.05,139.04,0.67]
[1764015885983,35.94186089,139.12,139.04,0.67]
[1764015885984,17.97347563,139.1,139.05,8.80994492]
[1764015886214,3.28,139.09,139.05,8.80994492]
[1764015886417,3.28,139.09,139.06,0.67]
[1764015886710,11.17983278,139.09,139.05,8.80994492]
[1764015886896,10.46983278,139.09,139.06,0.67]
[1764015887089,3.28,139.09,139.06,0.67]
[1764015887391,19.588864,139.09,139.06,7.8610793]
[1764015887608,7.18856382,139.11,139.07,8.80994492]
[1764015887811,18.68769562,139.14,139.07,9.46994492]
[1764015888007,10.46752246,139.13,139.08,0.66]
[1764015888916,11.18752246,139.13,139.08,0.66]
[1764015889130,11.18752246,139.13,139.08,7.84985179]
[1764015889641,0.86216157,139.12,139.04,8.80994492]
[1764015889913,0.86216157,139.12,139.06,0.66]
[1764015891114,7.18855581,139.11,139.06,0.66]
[1764015891324,3.28,139.1,139.06,0.66]
[1764015891928,4.0,139.1,139.06,0.66]
[1764015892403,3.28,139.1,139.06,0.66]
[1764015892603,3.28,139.1,139.04,16.00191826]
[1764015892604,0.72,139.09,139.04,16.69191826]
[1764015893002,0.72,139.09,139.05,0.69]
[1764015893833,7.19010641,139.08,139.05,0.69]
[1764015894055,3.28,139.07,139.05,0.69]
[1764015895333,3.28,139.07,139.05,7.8815989]
[1764015895814,3.28,139.07,139.06,0.69]
[1764015897335,3.28,139.07,139.04,16.69197126]
[1764015897538,3.28,139.07,139.05,0.69]
[1764015898433,10.47069939,139.07,139.05,0.69]
[1764015898818,3.28,139.07,139.05,0.69]
[1764015899626,7.19032786,139.08,139.05,0.69]
[1764015899827,3.26,139.07,139.05,0.69]
[1764015900133,10.45106349,139.07,139.05,0.69]
[1764015900337,10.45106349,139.07,139.03,0.69]
[1764015900338,11.12106349,139.07,139.03,0.69]
[1764015900645,10.45106349,139.07,139.02,0.69]
[1764015901015,11.12106349,139.07,139.02,0.69]
[1764015901211,0.67,139.06,139.02,0.69]
[1764015901419,29.09762205,139.07,139.02,0.69]
[1764015902840,16.308864,139.04,139.0,8.80994492]
[1764015903040,3.40216157,139.03,138.97,0.69]
[1764015903219,4.07216157,139.03,138.97,0.69]
[1764015903939,0.67,139.02,138.97,0.69]
[1764015904312,7.19372706,139.01,138.97,0.69]
[1764015904518,3.26,139.0,138.97,0.69]
[1764015904733,7.19372706,139.01,138.97,0.69]
[1764015904941,3.26,139.0,138.97,0.69]
[1764015905644,3.26,139.0,138.94,0.2]
[1764015905817,16.308864,138.98,138.94,0.89]
[1764015906135,3.26,138.97,138.94,0.89]
[1764015906311,3.26,138.97,138.95,0.69]
[1764015906958,10.45597713,138.97,138.94,0.2]
[1764015907119,0.67,138.96,138.94,0.2]
[1764015908324,16.308864,138.95,138.94,0.2]
[1764015908546,17.12102557,138.95,138.94,0.2]
[1764015908719,17.12102557,138.95,138.94,1e-08]
[1764015909095,24.31785896,138.95,138.94,1e-08]
[1764015909723,23.50569739,138.95,138.94,1e-08]
[1764015909940,26.76569739,138.95,138.94,1e-08]
[1764015910537,23.50569739,138.95,138.94,1e-08]
[1764015910741,3.26,138.95,138.94,0.69000001]
[1764015911260,3.26,138.95,138.94,1e-08]
[1764015911757,3.26,138.95,138.94,0.69000001]
[1764015912537,3.26,138.95,138.94,9.49994493]
[1764015914265,3.26,138.95,138.94,16.6972963]
[1764015914472,3.26,138.95,138.94,9.49994493]
[1764015914872,3.26,138.95,138.94,0.69000001]
[1764015915168,10.45683339,138.95,138.94,1e-08]
[1764015915867,11.12683339,138.95,138.94,1e-08]
[1764015916073,11.26899496,138.95,138.94,1e-08]
[1764015916868,27.57785896,138.95,138.94,1e-08]
[1764015917069,11.26899496,138.95,138.94,1e-08]
[1764015918364,16.308864,138.93,138.92,1e-08]
[1764015918581,7.19338523,139.02,138.93,8.80994492]
[1764015918743,0.67,139.03,138.98,0.14216157]
[1764015919088,50.1,139.19,138.94,7.33940452]
[1764015919089,0.67,139.02,138.94,7.33940452]
[1764015919241,0.67,139.02,138.92,26.13940464]
[1764015919242,3.26,139.01,138.92,8.80994493]
[1764015919451,3.26,139.01,138.92,34.00414143]
[1764015919773,3.26,139.01,138.92,16.00817253]
[1764015919774,0.67,139.0,138.92,16.00817253]
[1764015920362,7.86357603,139.02,138.93,0.14216157]
[1764015920568,3.26,139.0,138.93,0.14216157]
[1764015920768,7.19010641,139.08,138.97,0.14216157]
[1764015920965,7.86100376,139.07,138.99,8.80994492]
[1764015921169,3.26,139.06,138.99,8.80994492]
[1764015921367,24.16986776,139.07,138.99,8.80994492]
[1764015921686,3.93,139.07,138.99,8.80994492]
[1764015921873,27.42949495,139.07,138.99,8.80994492]
[1764015922978,20.238864,139.07,139.01,8.80994492]
[1764015923181,3.93,139.07,139.01,8.80994492]
[1764015923573,11.12077074,139.07,139.01,8.80994492]
[1764015923979,0.67,139.06,139.01,8.80994492]
[1764015925289,7.86164562,139.06,139.01,8.80994492]
[1764015925578,11.12164562,139.06,139.01,7.19355362]
[1764015925784,0.67,139.05,139.01,7.19355362]
[1764015925967,16.308864,139.03,138.93,8.14343573]
[1764015926168,0.14216157,139.01,138.91,0.2]
[1764015926473,16.45102557,139.01,138.91,7.39854437]
[1764015926673,16.45102557,139.01,138.91,0.2]
[1764015926674,0.67,139.0,138.91,0.2]
[1764015927062,0.67,139.0,138.91,9.00994492]
[1764015927464,16.308864,138.96,138.91,7.39889674]
[1764015927675,19.568864,138.96,138.91,7.39889674]
[1764015927860,20.238864,138.96,138.91,0.2]
[1764015928061,0.67,138.95,138.91,7.39882575]
[1764015928366,19.568864,138.96,138.91,7.39882575]
[1764015928702,0.1,139.2,138.97,25.11880892]
[1764015928703,0.67,139.08,138.97,25.11880892]
[1764015928874,0.67,139.08,139.01,8.80994492]
[1764015929385,3.93,139.08,139.01,8.80994492]
[1764015929574,29.09556206,139.08,139.01,16.00346531]
[1764015929761,0.67,139.07,139.01,8.80994492]
[1764015931485,0.67,139.07,139.03,8.80994492]
[1764015931881,24.1695212,139.07,139.03,8.80994492]
[1764015932081,24.1695212,139.07,139.01,16.00349663]
[1764015932383,0.67,139.06,139.01,16.00349663]
[1764015932586,0.67,139.06,138.96,0.86179311]
[1764015932587,0.67,139.06,138.96,17.02849554]
[1764015932769,0.14216157,139.05,138.95,8.80994492]
[1764015932968,3.26,139.04,138.95,25.11880892]
[1764015933185,3.93,139.04,138.95,25.11880892]
[1764015933487,3.93,139.04,138.97,8.80994492]
[1764015933488,7.86289002,139.03,138.97,8.80994492]
[1764015934271,0.81216157,139.02,138.92,1e-08]
[1764015934478,16.308864,139.0,138.92,1e-08]
[1764015934778,3.26,138.99,138.93,8.80994492]
[1764015935489,11.125066,138.99,138.93,16.00781435]
[1764015935986,3.26,138.99,138.93,34.00248792]
[1764015936570,3.93,138.99,138.93,16.00781435]
[1764015937187,3.93,138.99,138.93,34.00248792]
[1764015937579,11.12490537,138.99,138.93,34.00248792]
[1764015940406,7.86541716,138.98,138.93,16.00781435]
[1764015940593,7.86541716,138.98,138.93,8.80994492]
[1764015940773,0.67,138.97,138.93,8.80994492]
[1764015942393,7.86620798,138.97,138.93,8.80994492]
[1764015942888,0.67,138.96,138.93,8.80994492]
[1764015945197,16.308864,138.97,138.93,7.19767313]
[1764015945503,16.978864,138.97,138.93,7.19767313]
[1764015945702,3.26,138.96,138.94,8.80994492]
[1764015947081,3.26,138.96,138.94,7.19721378]
[1764015947482,3.26,138.96,138.92,1e-08]
[1764015947483,0.67,138.95,138.92,1e-08]
[1764015948096,10.45640008,138.96,138.92,1e-08]
[1764015948402,3.95,138.96,138.93,8.80994492]
[1764015949277,11.14632043,138.96,138.93,8.80994492]
[1764015949914,11.14632043,138.96,138.93,7.19786191]
[1764015950080,0.69,138.95,138.93,8.80994492]
[1764015950494,0.69,138.95,138.92,1e-08]
[1764015950699,0.69,138.95,138.93,8.80994492]
[1764015952488,7.8871609,138.95,138.92,1e-08]
[1764015952694,7.8871609,138.95,138.92,8.80994493]
[1764015952896,0.71,138.94,138.92,8.80994493]
[1764015954299,7.90741289,138.94,138.92,8.80994493]
[1764015954913,0.71,138.93,138.92,1e-08]
[1764015955291,3.97,138.93,138.92,1e-08]
[1764015955793,11.16786943,138.93,138.92,1e-08]
[1764015957293,3.26,138.93,138.92,1e-08]
[1764015957515,7.19707943,138.95,138.92,8.80994493]
[1764015957706,3.26,138.93,138.92,8.80994493]
[1764015958290,3.26,138.93,138.92,1e-08]
[1764015959315,11.16786943,138.93,138.92,1e-08]
[1764015960518,11.310031,138.93,138.92,1e-08]
[1764015968626,11.16786943,138.93,138.92,1e-08]
[1764015970703,7.90786943,138.93,138.92,1e-08]
[1764015970928,11.16786943,138.93,138.92,1e-08]
[1764015971321,11.310031,138.93,138.92,1e-08]
[1764015973911,8.050031,138.93,138.92,1e-08]
[1764015974116,11.310031,138.93,138.92,1e-08]
[1764015974905,11.310031,138.93,138.86,0.2]
[1764015974906,0.14216157,138.89,138.86,0.2]
[1764015975113,3.97,138.88,138.86,0.2]
[1764015975328,3.26,138.88,138.86,0.2]
[1764015975741,3.97,138.88,138.86,0.2]
[1764015976332,7.20097933,138.87,138.86,0.2]
[1764015978021,7.91097933,138.87,138.86,0.2]
[1764015978544,8.0531409,138.87,138.86,0.2]
[1764015980422,10.6031409,138.87,138.86,0.2]
[1764015980930,11.3131409,138.87,138.86,0.2]
[1764015982111,7.91097933,138.87,138.86,0.2]
[1764015982311,3.26,138.87,138.86,0.2]
[1764015982506,0.85216157,138.9,138.86,0.2]
[1764015982507,7.20003698,138.89,138.86,0.2]
[1764015982726,3.26,138.88,138.86,9.00994492]
[1764015983323,7.19957627,138.9,138.86,16.21124605]
[1764015983528,3.26,138.89,138.86,16.21124605]
[1764015983711,19.568864,138.89,138.86,9.00994492]
[1764015984441,19.568864,138.89,138.86,16.21142016]
[1764015984940,26.76888626,138.89,138.86,9.00994492]
[1764015985834,0.65,138.88,138.86,9.00994492]
[1764015986834,7.85088567,138.88,138.86,9.00994492]
[1764015987151,7.85088567,138.88,138.86,0.2]
[1764015987724,0.65,138.87,138.86,0.2]
[1764015988644,3.91,138.87,138.86,0.2]
[1764015988851,7.85097933,138.87,138.86,0.2]
[1764015989055,11.11097933,138.87,138.86,0.2]
[1764015992943,7.20068652,138.88,138.86,0.2]
[1764015993148,3.26,138.87,138.86,9.00994492]
[1764015993667,16.958864,138.89,138.86,0.2]
[1764015993967,3.26,138.87,138.86,0.2]
[1764015994536,10.46097933,138.87,138.86,0.2]
[1764015995238,11.2531409,138.87,138.86,0.2]
[1764015996543,10.46097933,138.87,138.86,0.2]
[1764015996773,3.26,138.87,138.86,0.2]
[1764015997789,3.26,138.87,138.86,9.00994492]
[1764015998085,20.36102557,138.87,138.86,0.2]
[1764015998645,27.5620049,138.87,138.86,0.2]
[1764015999777,24.15984333,138.87,138.86,0.2]
[1764015999958,26.76984333,138.87,138.86,0.2]
[1764016000284,3.26,138.87,138.86,0.2]
[1764016000581,3.26,138.87,138.86,9.00994492]
[1764016001578,18.64791063,138.91,138.86,16.21142308]
[1764016001579,0.65,138.91,138.86,16.21142308]
[1764016001743,17.99528453,138.93,138.86,16.21142308]
[1764016001744,3.26,138.9,138.86,16.21142308]
[1764016002267,3.26,138.9,138.86,34.21516785]
[1764016002841,7.19838756,138.92,138.86,34.21516785]
[1764016003046,3.26,138.91,138.86,34.21516785]
[1764016003477,3.26,138.91,138.86,16.21142308]
[1764016003648,3.91,138.91,138.86,16.21142308]
[1764016003853,3.26,138.91,138.86,16.21142308]
[1764016004660,7.19873216,138.92,138.86,34.21516785]
[1764016004856,34.95253291,138.94,138.86,34.21516785]
[1764016004857,0.65,138.94,138.88,8.80994492]
[1764016005063,3.26,138.94,138.88,8.80994492]
[1764016006055,0.65,138.93,138.88,8.80994492]
[1764016006376,0.14216157,138.92,138.86,9.00994492]
[1764016006572,7.19942404,138.9,138.86,16.21134397]
[1764016006776,7.19942404,138.9,138.86,9.00994492]
[1764016006963,7.84942404,138.9,138.86,9.00994492]
[1764016007475,7.84942404,138.9,138.86,16.21144065]
[1764016007662,7.84942404,138.9,138.86,9.00994492]
[1764016007869,7.84942404,138.9,138.86,16.21142575]
[1764016008564,11.15912571,138.91,138.86,16.21142575]
[1764016008872,3.26,138.91,138.86,16.21142575]
[1764016009280,3.26,138.91,138.86,34.21517052]
[1764016011960,7.19862087,138.92,138.86,34.21517052]
[1764016012475,3.26,138.91,138.86,34.21517052]
[1764016013379,10.45895808,138.91,138.86,34.21517052]
[1764016013576,0.72,138.9,138.86,16.21142575]
[1764016013777,0.72,138.9,138.86,9.00994492]
[1764016015576,7.1999424,138.89,138.86,9.00994492]
[1764016015776,3.26,138.88,138.86,9.00994492]
[1764016015982,3.98,138.88,138.86,9.00994492]
[1764016016970,3.26,138.88,138.86,9.00994492]
[1764016017293,0.72,138.87,138.86,9.00994492]
[1764016017465,3.98,138.88,138.86,9.00994492]
[1764016017672,11.18074407,138.88,138.86,9.00994492]
[1764016019088,3.98,138.88,138.86,9.00994492]
[1764016019606,11.18058696,138.88,138.86,9.00994492]
[1764016020402,17.9980142,138.91,138.86,16.21139883]
[1764016020403,3.26,138.89,138.86,16.21139883]
[1764016020701,7.919558,138.9,138.86,16.21139883]
[1764016020900,3.26,138.89,138.86,16.21139883]
[1764016021735,0.72,138.95,138.86,34.93529339]
[1764016021875,3.26,138.94,138.86,34.93529339]
[1764016022286,3.26,138.94,138.86,34.2151436]
[1764016022287,0.72,138.93,138.86,34.2151436]
[1764016023597,3.26,138.92,138.86,34.2151436]
[1764016023785,3.26,138.93,138.86,34.2151436]
[1764016024099,3.26,138.93,138.86,70.22263315]
[1764016024805,3.26,138.93,138.88,8.80994492]
[1764016025014,0.72,138.92,138.88,8.80994492]
[1764016025824,3.98,138.93,138.88,7.20046082]
[1764016025997,0.72,138.93,138.89,8.80994492]
[1764016026183,0.72,138.92,138.89,8.80994492]
[1764016027415,0.72,138.92,138.89,16.00967712]
[1764016027618,7.9184616,138.92,138.89,16.00967712]
[1764016027824,0.72,138.92,138.89,8.80994492]
[1764016028000,7.9184218,138.92,138.89,8.80994492]
[1764016028328,0.72,138.92,138.89,16.00984685]
[1764016031311,3.98,138.92,138.89,16.00984685]
[1764016033819,0.72,138.96,138.89,34.00970285]
[1764016036320,3.98,138.97,138.89,34.00970285]
[1764016037426,3.26,138.98,138.93,8.80994492]
[1764016037624,3.98,138.98,138.93,8.80994492]